bitfinex/quotes_ETHUSD_20240828
["timestamp","ask_amount","ask_price","bid_price","bid_amount"]
[1724876041579,10.36652074,2523.2,2522.8,5.048047]
[1724876042277,10.36652074,2523.2,2522.8,1.084287]
[1724876042784,10.36652074,2523.2,2522.8,5.048117]
[1724876043736,10.36652074,2523.2,2522.8,1.084287]
[1724876043935,3.96344,2523.1,2522.8,1.084287]
[1724876044847,10.36652074,2523.2,2522.8,1.084287]
[1724876045974,0.41515736,2523.3,2522.8,7.313257]
[1724876045975,4.37822736,2523.3,2522.8,7.313257]
[1724876046136,4.37822736,2523.3,2522.9,0.73925313]
[1724876046578,4.37822736,2523.3,2522.9,1.82354013]
[1724876047242,4.37822736,2523.3,2522.9,1.084287]
[1724876048482,3.96324,2523.2,2522.9,1.084287]
[1724876049270,8.34140736,2523.3,2522.9,1.084287]
[1724876049676,8.34141736,2523.3,2522.9,1.084287]
[1724876049882,3.96323,2523.2,2522.9,1.084287]
[1724876050088,4.37822736,2523.3,2522.9,1.084287]
[1724876050380,3.96327,2523.2,2522.9,1.5890987]
[1724876050580,3.96327,2523.2,2522.9,1.084287]
[1724876050786,4.37822736,2523.3,2522.9,1.084287]
[1724876051290,3.9633,2523.2,2522.9,1.084287]
[1724876051961,4.37822736,2523.3,2522.9,1.084287]
[1724876052156,0.41515736,2523.3,2523.0,4.4682687]
[1724876052355,0.41515736,2523.3,2523.1,3.9633]
[1724876052663,0.41515736,2523.3,2523.1,5.047587]
[1724876053348,0.41515736,2523.3,2523.2,3.96322]
[1724876053692,0.41515736,2523.3,2523.2,6.00699508]
[1724876054744,0.41515736,2523.3,2523.2,12.37927501]
[1724876055381,3.96201,2524.0,2523.4,3.96283]
[1724876055543,4.37704621,2524.0,2523.4,5.047097]
[1724876055743,4.37704621,2524.0,2523.4,9.9599002]
[1724876055977,4.37704621,2524.0,2523.4,5.9970902]
[1724876056143,6.96213,2523.9,2523.4,5.9970902]
[1724876056345,6.96213,2523.9,2523.4,1.084287]
[1724876056591,3.96229,2523.8,2523.4,1.084287]
[1724876057043,3.9619,2524.1,2523.6,3.96257]
[1724876057246,3.0,2524.0,2523.6,3.96257]
[1724876057446,3.0,2524.0,2523.7,6.29223]
[1724876057698,4.37659351,2524.3,2523.8,3.96223]
[1724876057985,3.96156,2524.3,2523.8,3.96219]
[1724876058289,3.96156,2524.3,2523.7,3.35528]
[1724876058448,3.96166,2524.2,2523.7,7.31769]
[1724876058651,3.96166,2524.2,2523.8,1.128014]
[1724876059251,3.96166,2524.2,2523.6,7.92496]
[1724876059449,3.96153,2524.3,2523.7,3.96231]
[1724876059690,3.96142,2524.4,2524.0,3.96196]
[1724876060194,3.96142,2524.4,2523.8,3.96213]
[1724876060393,3.96142,2524.4,2523.9,3.96209]
[1724876060687,7.92284,2524.4,2524.0,0.792422]
[1724876061193,3.9615,2524.3,2524.0,0.792422]
[1724876061561,3.9615,2524.3,2524.0,1.75344]
[1724876062091,3.96142,2524.4,2524.0,1.75344]
[1724876062402,3.96157,2524.3,2524.1,0.571553]
[1724876062710,3.96165,2524.2,2524.1,0.961018]
[1724876062904,7.9233,2524.2,2524.1,0.961018]
[1724876063572,3.96165,2524.2,2524.1,0.961018]
[1724876064458,3.86165,2524.2,2524.1,0.961018]
[1724876064662,3.96165,2524.2,2524.1,0.961018]
[1724876065248,7.9233,2524.2,2524.1,0.961018]
[1724876068101,3.96165,2524.2,2524.1,0.961018]
[1724876069726,7.9233,2524.2,2524.1,0.961018]
[1724876072195,3.96165,2524.2,2524.1,0.961018]
[1724876073524,3.40329074,2524.3,2524.1,0.961018]
[1724876073891,10.77938731,2524.6,2524.1,4.922728]
[1724876074124,7.77938731,2524.6,2524.2,0.7391928]
[1724876074430,3.40329074,2524.6,2524.2,8.6623928]
[1724876074595,3.40329074,2524.6,2524.2,4.7007528]
[1724876074792,3.40329074,2524.6,2524.3,0.56617708]
[1724876075906,3.40329074,2524.6,2524.3,1.52719508]
[1724876076439,3.96118,2524.5,2524.3,0.961018]
[1724876076645,3.96133,2524.4,2524.3,0.961018]
[1724876076942,7.92266,2524.4,2524.3,0.961018]
[1724876077107,3.96133,2524.4,2524.3,0.961018]
[1724876077642,7.92266,2524.4,2524.3,0.961018]
[1724876077945,9.28088507,2524.4,2524.3,0.961018]
[1724876078746,12.28088507,2524.4,2524.3,0.961018]
[1724876080938,7.36441074,2524.6,2524.3,0.961018]
[1724876081248,3.96118,2524.5,2524.3,0.961018]
[1724876081608,3.96133,2524.4,2524.3,0.961018]
[1724876081809,7.92266,2524.4,2524.3,0.961018]
[1724876082933,9.29132507,2524.4,2524.3,0.961018]
[1724876087225,7.92266,2524.4,2524.3,0.961018]
[1724876087426,3.40329074,2524.6,2524.3,0.961018]
[1724876087427,3.96126,2524.5,2524.3,0.961018]
[1724876088054,7.36435074,2524.6,2524.3,0.961018]
[1724876088416,3.40329074,2524.6,2524.3,1.4532898]
[1724876089822,4.37574301,2524.8,2524.4,2.3948]
[1724876090021,0.41494301,2524.8,2524.5,3.96112]
[1724876090326,0.41494301,2524.8,2524.6,4.596582]
[1724876090530,3.96035,2525.1,2524.6,3.96099]
[1724876091059,3.81820593,2525.2,2524.6,0.49683948]
[1724876091060,2.4894,2524.8,2524.6,0.49683948]
[1724876091361,3.96227,2523.9,2523.5,0.123269]
[1724876091523,3.96167,2524.2,2523.5,4.085859]
[1724876091720,3.96167,2524.2,2523.7,2.4376]
[1724876091923,3.96167,2524.2,2523.8,0.24376]
[1724876092219,7.92346,2524.2,2523.8,0.24376]
[1724876092428,3.96181,2524.1,2523.7,2.4376]
[1724876093429,3.96221,2523.9,2523.5,0.123269]
[1724876093635,3.96253,2523.7,2523.5,0.123269]
[1724876094178,3.40329074,2524.1,2523.5,0.123269]
[1724876094359,5.4941,2524.4,2524.0,2.429]
[1724876094360,6.96139,2524.4,2524.0,2.429]
[1724876094662,3.9618,2524.1,2523.7,2.429]
[1724876094816,3.96199,2524.0,2523.7,2.429]
[1724876095019,3.96239,2523.8,2523.5,2.552269]
[1724876095330,3.96215,2523.9,2523.5,2.552269]
[1724876096420,5.4941,2524.3,2523.5,6.514999]
[1724876096421,3.0,2524.3,2523.5,6.514999]
[1724876096617,3.96201,2524.0,2523.5,2.552269]
[1724876097357,3.96227,2523.9,2523.5,2.552269]
[1724876098160,7.9245,2523.9,2523.5,2.552269]
[1724876098360,3.96223,2523.9,2523.5,2.552269]
[1724876099224,3.96252,2523.7,2523.5,0.123269]
[1724876099467,4.69876207,2523.9,2523.5,0.123269]
[1724876099630,3.96221,2523.9,2523.5,0.123269]
[1724876099963,3.96231,2523.8,2523.5,0.123269]
[1724876100170,3.96244,2523.7,2523.5,0.123269]
[1724876100456,3.0,2524.3,2523.6,2.415]
[1724876100631,3.96174,2524.2,2523.7,0.2538269]
[1724876100838,3.96174,2524.2,2523.6,6.37749]
[1724876101380,3.0,2524.5,2523.6,2.415]
[1724876101381,3.96206,2524.0,2523.6,2.415]
[1724876101671,4.358416,2523.9,2523.5,0.123269]
[1724876101831,3.96244,2523.7,2523.5,0.123269]
[1724876102032,2.3393,2524.3,2523.5,0.123269]
[1724876102364,3.0,2524.3,2523.8,6.34749]
[1724876102573,7.92285,2524.4,2523.8,6.34749]
[1724876102858,7.92227,2524.6,2524.1,3.96171]
[1724876103068,7.92229,2524.6,2524.0,3.96196]
[1724876103371,3.96118,2524.5,2524.0,3.96196]
[1724876103530,3.96118,2524.5,2523.9,7.92404]
[1724876103859,4.753349,2524.6,2524.0,3.96191]
[1724876104062,7.92226,2524.6,2524.0,3.96191]
[1724876104271,3.96121,2524.5,2523.9,3.96201]
[1724876104427,3.96135,2524.4,2523.9,3.96201]
[1724876104827,3.96135,2524.4,2523.9,5.94201]
[1724876105953,3.9616,2524.3,2523.9,1.98]
[1724876106121,3.96181,2524.1,2523.9,1.98]
[1724876106324,4.357372,2524.5,2523.9,5.94199]
[1724876106540,3.96126,2524.5,2524.0,6.21798]
[1724876107180,3.96104,2524.6,2524.1,3.96179]
[1724876107483,3.96104,2524.6,2524.1,5.6333859]
[1724876107686,3.96104,2524.6,2524.1,3.96179]
[1724876108188,6.96069,2524.9,2524.4,3.9613]
[1724876108397,6.37973,2525.5,2524.7,3.96078]
[1724876108550,3.40329074,2525.8,2525.0,3.96036]
[1724876108749,3.9596,2525.6,2525.0,3.96036]
[1724876108958,3.95963,2525.5,2524.9,3.96046]
[1724876109262,4.69588907,2525.6,2525.0,3.96036]
[1724876109457,0.46958891,2525.5,2525.0,3.96036]
[1724876109659,4.42922891,2525.5,2524.9,3.96043]
[1724876110088,3.95977,2525.4,2524.9,3.96043]
[1724876110387,3.95977,2525.4,2524.9,7.92088]
[1724876110588,4.69583907,2525.6,2525.0,3.96037]
[1724876110747,4.69583907,2525.6,2524.9,7.92087]
[1724876110950,4.69583907,2525.6,2524.9,4.03963186]
[1724876111163,4.42920391,2525.5,2524.9,4.03963186]
[1724876111349,4.42920391,2525.5,2524.8,2.4538]
[1724876111350,3.95993,2525.3,2524.8,2.4538]
[1724876111545,3.95993,2525.3,2524.6,7.41]
[1724876111546,3.96016,2525.2,2524.6,7.41]
[1724876111775,3.96016,2525.2,2524.6,11.37097]
[1724876111974,3.96056,2524.9,2524.6,7.41]
[1724876112174,3.96025,2525.1,2524.5,2.4742]
[1724876112175,1.07181461,2525.2,2524.7,3.96085]
[1724876112395,7.92001,2525.3,2524.7,3.96085]
[1724876112587,0.41485615,2525.4,2524.7,3.96085]
[1724876112775,3.95995,2525.3,2524.7,3.96077]
[1724876112962,3.95995,2525.3,2524.8,3.96061]
[1724876113686,1.67093667,2525.4,2524.8,3.96061]
[1724876113993,5.63073667,2525.4,2524.8,3.96061]
[1724876115588,5.63073667,2525.4,2524.9,3.96054]
[1724876115753,0.41485615,2525.4,2525.3,3.95992]
[1724876115952,0.41485615,2525.4,2525.3,11.13036107]
[1724876116752,0.41485615,2525.4,2525.3,15.09028107]
[1724876116994,0.41485615,2525.4,2525.3,15.64028107]
[1724876118881,0.05066131,2525.4,2525.3,19.60020107]
[1724876119125,3.95789,2526.6,2526.1,3.95863]
[1724876119405,3.95784,2526.7,2526.1,3.95857]
[1724876119406,7.91569,2526.7,2526.1,3.95857]
[1724876119612,0.41471661,2526.5,2526.1,3.95857]
[1724876119992,0.41471661,2526.5,2526.1,7.91715]
[1724876120213,0.41471661,2526.5,2526.1,3.95857]
[1724876120383,0.41471661,2526.5,2526.4,6.4293]
[1724876120708,0.41471661,2526.5,2526.4,14.99654611]
[1724876121011,2.2536,2528.0,2526.4,14.99654611]
[1724876121012,3.95659,2527.5,2527.0,2.4711]
[1724876121176,3.40329074,2528.1,2527.0,2.4711]
[1724876121177,3.9563,2527.7,2527.0,2.4711]
[1724876121371,3.95635,2527.6,2527.1,3.95696]
[1724876121713,3.95635,2527.6,2527.0,2.4711]
[1724876121868,4.352125,2527.5,2527.0,2.4711]
[1724876122274,3.95674,2527.4,2527.0,2.4711]
[1724876122476,4.352125,2527.5,2527.0,2.4711]
[1724876122712,3.95695,2527.2,2526.7,3.95765]
[1724876122915,0.395695,2527.1,2526.6,2.286]
[1724876123206,3.95731,2527.0,2526.3,6.24422]
[1724876123412,3.95707,2527.2,2526.3,2.286]
[1724876123773,7.91412,2527.2,2526.6,3.95785]
[1724876123972,7.91412,2527.2,2526.5,3.95792]
[1724876124210,3.95705,2527.2,2526.5,7.91586]
[1724876124377,3.95705,2527.2,2526.6,3.95782]
[1724876124783,3.95705,2527.2,2526.5,3.95792]
[1724876125018,3.40329074,2526.9,2526.1,3.95858]
[1724876125173,3.95788,2526.7,2526.1,3.95858]
[1724876125374,0.34032907,2526.8,2526.3,3.95834]
[1724876125569,4.29790907,2526.8,2526.3,3.95834]
[1724876125875,0.34032907,2526.8,2526.3,3.95834]
[1724876126284,0.34032907,2526.8,2526.3,5.93825]
[1724876126285,3.0,2526.8,2526.3,5.93825]
[1724876126917,3.0,2526.8,2526.4,3.95809]
[1724876127081,3.95716,2527.1,2526.5,3.95792]
[1724876127276,3.0,2527.0,2526.6,3.95787]
[1724876127910,3.95626,2527.7,2526.7,2.2642]
[1724876128079,3.95626,2527.7,2527.0,3.95715]
[1724876128279,3.95626,2527.7,2526.7,2.2642]
[1724876128280,4.37037198,2527.9,2527.3,2.2642]
[1724876128596,0.41446198,2527.9,2527.5,3.95638]
[1724876128903,0.41446198,2527.9,2527.3,6.22088]
[1724876129304,0.41446198,2527.9,2527.5,3.95633]
[1724876130085,0.41446198,2527.9,2527.4,0.07912593]
[1724876130281,0.41446198,2527.9,2527.4,4.03571593]
[1724876130508,0.4370172,2527.8,2527.4,3.95659]
[1724876130888,0.41446198,2527.9,2527.5,3.95643]
[1724876131203,0.41446198,2527.9,2527.5,3.95636]
[1724876131383,0.41446198,2527.9,2527.3,6.22091]
[1724876131384,4.37042198,2527.9,2527.3,6.22091]
[1724876131581,5.20302818,2527.9,2527.3,6.22091]
[1724876131820,5.20302818,2527.9,2527.3,3.95671]
[1724876132014,1.24706818,2527.9,2527.4,3.95661]
[1724876132223,0.41446198,2527.9,2527.3,3.95668]
[1724876132380,0.41446198,2527.9,2527.7,2.471]
[1724876132585,0.41446198,2527.9,2527.4,4.352228]
[1724876132856,0.41446198,2527.9,2527.4,3.95656]
[1724876132979,0.41446198,2527.9,2527.3,2.471]
[1724876132980,4.37032198,2527.9,2527.3,2.471]
[1724876133187,3.95629,2527.7,2527.1,7.41]
[1724876133382,0.41446198,2527.9,2527.2,2.52592871]
[1724876133592,0.41446198,2527.9,2527.8,6.4028]
[1724876134520,0.41446198,2527.9,2527.5,6.37594]
[1724876134818,0.41446198,2527.9,2527.5,7.013534]
[1724876135121,0.41446198,2527.9,2527.2,4.50689]
[1724876135122,0.41446198,2527.9,2527.3,3.95671]
[1724876135278,0.41446198,2527.9,2527.6,2.2933]
[1724876135824,0.41446198,2527.9,2527.8,14.1613]
[1724876136522,0.41446198,2527.9,2527.8,14.7113]
[1724876138603,0.41446198,2527.9,2527.8,10.7553]
[1724876138799,0.41446198,2527.9,2527.8,10.2053]
[1724876139206,0.00364908,2528.2,2527.8,10.2053]
[1724876139207,0.00364908,2528.2,2528.0,3.95556]
[1724876140119,0.00364908,2528.2,2527.8,6.24917]
[1724876140372,2.4813,2528.1,2527.5,3.95646]
[1724876140636,0.24849491,2528.0,2527.4,7.41]
[1724876140840,3.95595,2527.9,2527.4,7.41]
[1724876140999,0.24849491,2528.0,2527.4,3.95663]
[1724876141636,0.24849491,2528.0,2527.5,3.95647]
[1724876142136,6.43686,2528.1,2527.7,3.95614]
[1724876142137,2.4813,2528.1,2527.7,3.95614]
[1724876142300,2.4813,2528.1,2527.6,3.95629]
[1724876142301,6.43684,2528.1,2527.6,3.95629]
[1724876142503,7.47641991,2528.1,2527.6,3.95629]
[1724876143131,11.43204991,2528.1,2527.6,3.95629]
[1724876143299,7.47641991,2528.1,2527.4,6.24131]
[1724876143738,7.47641991,2528.1,2527.6,3.95629]
[1724876143909,7.47641991,2528.1,2527.6,3.95624]
[1724876145367,3.52087991,2528.1,2527.6,7.91242]
[1724876145541,7.47641991,2528.1,2527.6,7.91242]
[1724876145746,3.52087991,2528.1,2527.6,7.91241]
[1724876145951,0.00364908,2528.2,2527.8,3.95596]
[1724876146116,0.00365766,2528.3,2527.9,3.95576]
[1724876146476,0.00365766,2528.3,2527.9,7.91153]
[1724876146663,0.00365766,2528.3,2527.9,3.95575]
[1724876146972,0.00365766,2528.3,2528.0,3.95568]
[1724876147150,0.00365766,2528.3,2528.1,3.95552]
[1724876148619,0.00365766,2528.3,2527.9,3.9557]
[1724876149223,0.00365766,2528.3,2527.7,3.95601]
[1724876149560,3.95555,2528.1,2527.6,7.41]
[1724876149861,6.21718766,2528.3,2527.7,3.95616]
[1724876149862,6.21717766,2528.3,2527.7,3.95616]
[1724876150063,6.21717766,2528.3,2527.7,7.91221]
[1724876150227,6.21717766,2528.3,2527.8,3.956]
[1724876150430,10.17249766,2528.3,2527.8,3.956]
[1724876150633,10.17249766,2528.3,2527.7,3.95605]
[1724876150945,3.9554,2528.2,2527.7,3.95605]
[1724876151120,3.9558,2528.0,2527.6,7.41]
[1724876151328,4.35152,2527.9,2527.6,7.41]
[1724876152390,2.435,2527.8,2527.2,7.41]
[1724876152733,2.435,2527.8,2527.3,3.95663]
[1724876153241,3.95593,2527.9,2527.3,3.95663]
[1724876153458,7.91189,2527.9,2527.3,3.95663]
[1724876153646,3.95593,2527.9,2527.3,7.91334]
[1724876153847,3.95602,2527.8,2527.3,3.95663]
[1724876154046,3.95616,2527.7,2527.2,11.36694]
[1724876154745,4.37057778,2527.7,2527.2,11.36694]
[1724876155774,0.41441778,2527.7,2527.6,10.32014]
[1724876155950,0.41441778,2527.7,2527.6,11.352154]
[1724876157285,0.41441778,2527.7,2527.6,15.308474]
[1724876157484,0.00365766,2528.3,2528.1,3.95544]
[1724876157783,0.00365766,2528.3,2527.9,3.95574]
[1724876157941,2.3099,2528.2,2527.7,7.41]
[1724876158143,3.95554,2528.1,2527.7,7.41]
[1724876158657,3.95594,2527.9,2527.3,6.44328]
[1724876158840,3.9557,2528.0,2527.4,3.95652]
[1724876159043,3.9557,2528.0,2527.5,3.95647]
[1724876159251,6.26539,2528.2,2527.3,6.44328]
[1724876159252,2.3099,2528.2,2527.7,3.95606]
[1724876159477,2.3099,2528.2,2527.7,4.351666]
[1724876159672,2.3099,2528.2,2527.7,3.95606]
[1724876160051,6.2653,2528.2,2527.4,3.95653]
[1724876160253,3.95572,2528.0,2527.4,3.95653]
[1724876160564,8.538062,2528.0,2527.4,3.95651]
[1724876160774,4.582282,2528.0,2527.4,7.91306]
[1724876160957,4.582282,2528.0,2527.5,3.95645]
[1724876161171,3.95594,2527.9,2527.4,3.95651]
[1724876162291,3.95606,2527.8,2527.3,3.95677]
[1724876162458,3.95594,2527.9,2527.3,3.95677]
[1724876162666,3.95617,2527.7,2527.1,7.41]
[1724876162926,3.95617,2527.7,2527.2,3.95686]
[1724876163084,3.95665,2527.4,2527.1,7.41]
[1724876163586,2.4959,2527.3,2527.1,7.41]
[1724876163791,6.45278,2527.3,2526.8,16.13748]
[1724876163949,3.95698,2527.2,2526.7,11.36771]
[1724876164147,3.95698,2527.2,2526.7,7.41]
[1724876164352,0.645288,2527.2,2526.4,7.41]
[1724876164669,2.4959,2526.7,2526.4,7.41]
[1724876165488,2.4959,2526.7,2526.3,1.98]
[1724876165650,6.26446,2527.0,2526.5,3.95794]
[1724876165857,8.559408,2527.2,2526.5,3.95794]
[1724876166078,4.602318,2527.2,2526.5,5.23987162]
[1724876166388,3.9576,2526.8,2526.3,2.573839]
[1724876166561,7.91527,2526.8,2526.3,1.98]
[1724876166773,6.4012,2526.8,2526.3,1.98]
[1724876167480,6.23382,2527.1,2526.6,3.95785]
[1724876167655,10.1902,2527.4,2526.6,3.95785]
[1724876167860,6.95683,2527.3,2526.8,3.95756]
[1724876168094,3.95697,2527.2,2526.6,3.95785]
[1724876168292,6.23342,2527.4,2526.6,4.769244]
[1724876168499,6.23342,2527.4,2526.7,4.03686101]
[1724876168789,3.95688,2527.3,2526.7,4.03686223]
[1724876168989,3.95688,2527.3,2526.7,7.99450223]
[1724876169301,3.95644,2527.6,2527.1,3.95701]
[1724876169471,3.95641,2527.6,2527.1,3.95701]
[1724876169677,3.95641,2527.6,2527.0,3.95726]
[1724876169987,7.91286,2527.6,2527.0,3.95726]
[1724876170359,3.95641,2527.6,2527.0,3.95726]
[1724876171298,4.582292,2528.0,2527.3,3.95677]
[1724876171299,2.974962,2528.0,2527.3,3.95677]
[1724876171501,2.974962,2528.0,2527.1,3.95704]
[1724876171502,3.95628,2527.7,2527.2,3.95693]
[1724876172222,8.9543262,2527.9,2527.3,3.95677]
[1724876172502,2.3484,2528.0,2527.3,0.07913095]
[1724876172702,3.95556,2528.1,2527.3,0.07913095]
[1724876172703,6.27458766,2528.3,2527.7,3.95616]
[1724876173061,0.41443134,2527.9,2527.7,3.95616]
[1724876173274,4.58291877,2528.2,2527.7,3.95616]
[1724876173620,4.58291877,2528.2,2527.4,7.41]
[1724876173621,2.3156,2527.8,2527.4,7.41]
[1724876173892,4.22926307,2527.7,2527.4,7.41]
[1724876174197,4.22926307,2527.7,2527.2,3.95691]
[1724876174198,3.95626,2527.7,2527.2,3.95691]
[1724876174805,3.95625,2527.7,2527.2,3.95691]
[1724876175301,3.95625,2527.7,2527.2,3.95686]
[1724876175462,3.95625,2527.7,2527.2,7.91371]
[1724876175666,3.95625,2527.7,2527.2,7.91369]
[1724876176095,3.95625,2527.7,2527.2,3.95684]
[1724876176298,3.95634,2527.6,2527.2,3.95684]
[1724876176499,2.3156,2527.8,2527.2,3.95684]
[1724876176705,3.95619,2527.7,2527.2,3.95684]
[1724876177288,6.27161,2527.8,2527.2,3.95684]
[1724876177489,3.9562,2527.7,2527.3,0.395684]
[1724876177686,3.9562,2527.7,2527.2,3.95684]
[1724876178301,3.9562,2527.7,2527.2,7.91369]
[1724876178600,3.9562,2527.7,2527.2,3.95684]
[1724876179296,2.3156,2527.8,2527.4,3.95656]
[1724876179704,2.3156,2527.8,2527.4,7.9131]
[1724876179903,2.3156,2527.8,2527.4,3.95654]
[1724876180500,3.95625,2527.7,2527.2,3.95685]
[1724876180862,3.95625,2527.7,2527.2,7.91372]
[1724876181063,3.95625,2527.7,2527.2,3.95685]
[1724876181906,2.4919,2527.3,2527.0,7.41]
[1724876182082,2.4919,2527.3,2526.7,3.95769]
[1724876182083,3.95702,2527.2,2526.7,3.95769]
[1724876182279,3.95717,2527.1,2526.7,1.770336]
[1724876182483,3.95717,2527.1,2526.6,3.95777]
[1724876183606,3.9572,2527.1,2526.5,11.36796]
[1724876183808,3.9572,2527.1,2526.6,5.094596]
[1724876184607,6.44879,2527.3,2526.8,3.95756]
[1724876185113,10.4057,2527.3,2526.8,3.95748]
[1724876185313,6.44879,2527.3,2526.8,3.95748]
[1724876185774,6.44879,2527.3,2526.8,7.91496]
[1724876186109,6.44879,2527.3,2526.8,7.99410077]
[1724876186404,10.40567,2527.3,2526.8,4.03662077]
[1724876186716,11.29963513,2527.5,2526.8,3.95748]
[1724876187004,3.95689,2527.3,2526.8,3.95748]
[1724876187385,3.95667,2527.4,2526.8,3.95748]
[1724876187592,3.95667,2527.4,2526.9,3.95731]
[1724876188508,3.38645513,2527.5,2527.0,3.95718]
[1724876188885,0.41448914,2527.3,2526.9,3.95731]
[1724876189074,0.41448914,2527.3,2527.0,0.07914076]
[1724876189278,0.41448914,2527.3,2526.9,0.79940607]
[1724876189492,0.41448914,2527.3,2526.9,3.9574]
[1724876190373,0.41448914,2527.3,2527.2,6.22064]
[1724876190576,0.41448914,2527.3,2527.2,10.17758]
[1724876190781,3.95585,2527.9,2527.3,3.95663]
[1724876191078,0.41443499,2527.9,2527.4,3.95654]
[1724876191409,0.41443499,2527.9,2527.5,3.95646]
[1724876191594,0.41443499,2527.9,2527.5,4.8495448]
[1724876192189,0.41443499,2527.9,2527.5,0.8930848]
[1724876194487,4.37031499,2527.9,2527.3,1.017758]
[1724876194698,6.21307,2527.7,2526.9,3.95734]
[1724876194904,6.21307,2527.7,2527.0,1.341486]
[1724876195100,9.59952513,2527.7,2527.0,1.341486]
[1724876196182,2.2568,2527.7,2527.0,1.341486]
[1724876196407,3.95602,2527.8,2527.1,2.3142]
[1724876196618,3.95602,2527.8,2527.1,6.8011806]
[1724876196978,0.41443499,2527.9,2527.1,6.8011806]
[1724876196979,0.41443499,2527.9,2527.3,3.95679]
[1724876197199,0.41443499,2527.9,2527.4,0.07912182]
[1724876197494,0.41443499,2527.9,2527.4,0.482703]
[1724876201701,0.41443499,2527.9,2527.4,4.439323]
[1724876202602,0.41443499,2527.9,2527.5,2.3798]
[1724876202790,0.41443499,2527.9,2527.8,7.912]
[1724876202996,0.00365766,2528.3,2528.0,3.95565]
[1724876203207,0.00365766,2528.3,2528.0,4.75472585]
[1724876203411,0.00365766,2528.3,2528.0,0.79907585]
[1724876204110,0.00365766,2528.3,2528.1,4.03462752]
[1724876204323,0.00365766,2528.3,2528.1,4.03456752]
[1724876204520,0.00365766,2528.3,2528.2,3.95538]
[1724876204719,0.00365766,2528.3,2528.2,5.07876234]
[1724876204919,0.00365766,2528.3,2528.2,5.15785701]
[1724876205628,0.00365766,2528.3,2528.2,1.20247701]
[1724876206193,0.00366338,2528.3,2527.7,11.36605]
[1724876206392,0.00366338,2528.3,2527.7,7.41]
[1724876206638,4.54282523,2528.3,2527.7,7.41]
[1724876206814,3.95581,2528.0,2527.5,7.41]
[1724876206994,3.9559,2527.9,2527.5,7.41]
[1724876207192,3.9557,2528.0,2527.5,7.41]
[1724876207952,7.91147,2528.0,2527.5,7.41]
[1724876208096,3.95625,2527.7,2527.1,6.40188]
[1724876208298,3.95593,2527.9,2527.2,3.95693]
[1724876208498,3.95593,2527.9,2527.2,5.733835]
[1724876208708,9.40339,2528.2,2527.3,0.0791301]
[1724876208894,9.40339,2528.2,2527.5,3.95639]
[1724876208895,3.95554,2528.1,2527.5,3.95639]
[1724876209111,3.95554,2528.1,2527.3,0.82578951]
[1724876209112,3.95585,2527.9,2527.3,0.82578951]
[1724876209313,6.95569,2528.0,2527.3,4.78255951]
[1724876209512,6.95569,2528.0,2527.4,0.65594645]
[1724876209710,3.0,2528.0,2527.4,0.65594645]
[1724876209916,3.0,2528.0,2527.4,0.73506837]
[1724876210115,6.95578,2528.0,2527.4,0.73506837]
[1724876210318,3.95586,2527.9,2527.2,5.733845]
[1724876210802,7.9118,2527.9,2527.2,5.733845]
[1724876211029,3.95586,2527.9,2527.2,5.733845]
[1724876211302,7.91182,2527.9,2527.3,1.2135635]
[1724876211500,3.95586,2527.9,2527.3,1.2135635]
[1724876211918,6.9557,2528.0,2527.3,5.1703335]
[1724876212235,6.9557,2528.0,2527.3,9.1271035]
[1724876212421,3.0,2528.0,2527.4,0.99974725]
[1724876212733,3.0,2528.0,2527.5,3.95636]
[1724876212943,3.0,2528.1,2527.5,3.95636]
[1724876213131,3.0,2528.1,2527.6,0.07911782]
[1724876213440,0.00366338,2528.3,2527.9,3.95579]
[1724876213735,0.00366338,2528.3,2527.7,2.3519]
[1724876213736,0.00366338,2528.3,2527.7,6.85797]
[1724876213939,0.00366338,2528.3,2527.9,3.95576]
[1724876214136,0.00366338,2528.3,2527.8,1.06479729]
[1724876214829,3.95888338,2528.3,2527.8,1.06479729]
[1724876215484,3.95888338,2528.3,2527.5,3.95636]
[1724876215604,3.95539,2528.2,2527.5,3.95636]
[1724876215805,3.95888338,2528.3,2527.6,3.95618]
[1724876216116,3.95541,2528.2,2527.5,3.95636]
[1724876216311,6.35981,2528.2,2527.6,0.630826]
[1724876216706,2.4044,2528.2,2527.6,0.630826]
[1724876216906,2.4044,2528.2,2527.6,4.587106]
[1724876217316,2.4044,2528.2,2527.7,4.74055638]
[1724876217543,0.00366338,2528.3,2527.8,0.07911126]
[1724876217735,3.95889338,2528.3,2527.7,0.70530508]
[1724876217942,3.95545,2528.2,2527.7,0.70530508]
[1724876218714,4.36975346,2528.2,2527.7,0.70530508]
[1724876219260,3.95554,2528.1,2527.5,11.36635]
[1724876219567,4.36976346,2528.2,2527.5,11.36635]
[1724876220141,2.4044,2528.0,2527.5,7.41]
[1724876220478,3.08182635,2528.0,2527.5,7.41]
[1724876220777,3.95588,2527.9,2527.5,7.41]
[1724876221227,3.95569,2528.0,2527.5,7.41]
[1724876221428,4.36982346,2528.2,2527.5,7.41]
[1724876221667,3.95563,2528.1,2527.5,8.94233]
[1724876222243,4.36982346,2528.2,2527.5,8.94233]
[1724876222244,3.95569,2528.0,2527.5,8.94233]
[1724876222427,3.95592,2527.9,2527.5,7.41]
[1724876222653,3.95619,2527.7,2527.5,7.41]
[1724876223005,3.95619,2527.7,2527.2,12.18]
[1724876223664,3.9568,2527.3,2527.1,7.41]
[1724876223880,3.9557,2528.0,2526.6,7.41]
[1724876223881,3.95727,2527.0,2526.6,7.41]
[1724876224029,3.95758,2526.8,2526.3,9.39]
[1724876224236,3.95758,2526.8,2526.4,0.939]
[1724876224237,3.95781,2526.7,2526.4,0.939]
[1724876224430,3.95758,2526.8,2526.3,1.98]